Cogmind - Beta 13 @@@ ROGUE MODE // 2024.03.31 @ 13:38:17 Player: Tech Result: Destroyed by G-47 Trooper with Particle Gun Performance ------------- Evolutions (0) 0 Regions Visited (1) 200 Robots Destroyed (14) 70 Value Destroyed (361) 361 Prototype IDs (3) 60 Alien Tech Used (0) 0 Bonus (0) 0 TOTAL SCORE: 691 Bonus ------- None Cogmind --------- Core Integrity 0/250 Matter 300/300 Energy 97/100 System Corruption 0% Temperature Warm (116) Movement Walking (120) Location -10/Materials Parts ------- > --- POWER (1) -------- (None) > --- PROPULSION (2) --- Aluminum Leg > --- UTILITY (2) ------ Improved Targeting Computer Improved Targeting Computer > --- WEAPON (2) ------- Small Laser > --- INVENTORY (5) ---- Light Ion Engine Heat Sink Peak State ------------ > --- POWER ------------ Light Ion Engine > --- PROPULSION ------- Aluminum Leg Aluminum Leg > --- UTILITY ---------- Heat Sink Improved Heat Sink > --- WEAPON ----------- EM Pulse Gun Grenade Launcher > --- INVENTORY -------- Medium Matter Pod [Rating: 9] Favorites ----------- Power Light Ion Engine Engine Light Ion Engine Propulsion Aluminum Leg Leg Aluminum Leg Wheel Wheel Utility Improved Targeting Computer Device Improved Heat Sink Storage Medium Matter Pod Processor Improved Targeting Computer Weapon EM Pulse Gun Energy Gun EM Pulse Gun Launcher Grenade Launcher Build | -11 -10 ------- Run | Yrd Mat Slots Evolved . | . . Power . | . . Propulsion . | . . Utility . | . . Weapon . | . . Parts Attached 23 | 6 17 Power 3 | 1 2 Engine 3 | 1 2 Core . | . . Reactor . | . . Propulsion 7 | 2 5 Treads . | . . Leg 5 | . 5 Wheel 2 | 2 . Hover . | . . Flight . | . . Utility 7 | 1 6 Device 3 | . 3 Storage 1 | 1 . Processor 3 | . 3 Hackware . | . . Protection . | . . Artifact . | . . Weapon 6 | 2 4 Energy Gun 3 | 2 1 Energy Cannon . | . . Ballistic Gun . | . . Ballistic Cannon . | . . Launcher 3 | . 3 Special Weapon . | . . Impact Weapon . | . . Slashing Weapon . | . . Piercing Weapon . | . . Special Melee Weapon . | . . Unidentified Prototypes . | . . Parts Lost 5 | . 5 Power 1 | . 1 Propulsion 2 | . 2 Utility . | . . Weapon 2 | . 2 Highest Loss Streak 2 | . 2 To Critical Strikes . | . . Average Slot Usage (%) 81 | . 81 Engine 13 | . 13 Leg 23 | . 23 Wheel 3 | . 3 Device 6 | . 6 Processor 18 | . 18 Energy Gun 10 | . 10 Launcher 5 | . 5 Naked Turns . | . . Heaviest Build 10 | 9 10 Greatest Support 20 | 20 20 Greatest Overweight (x) 2 | . 2 Average Overweight (x) . | . . Largest Inventory Capacity 5 | 5 5 Average Capacity 5 | 5 5 Most Carried 2 | 2 2 Average Carried 1 | . 1 Final Capacity 5 | 5 5 Final Carried 2 | 1 2 Class Distribution -------------------- 93% | Mutant 6% | Scavenger-Mutant Dominant Class ---------------- Mutant | -10/Materials Resources | -11 -10 ----------- Run | Yrd Mat Matter Collected 565 | 356 209 Remotely . | . . Salvage Created 502 | 75 427 Parts 33 | 5 28 Haulers Intercepted . | . . Recyclers Shooed . | . . Parts Field Recycled . | . . Retrieved Matter . | . . Parts Self-Destructed . | . . Prevented . | . . Kills | -11 -10 ------- Run | Yrd Mat Combat Hostiles Destroyed 9 | 1 8 Guns 8 | 1 7 AOE 1 | . 1 Classes Destroyed 5 | 2 3 Worker 2 | 1 1 Builder 1 | . 1 Recycler 1 | . 1 Watcher 1 | . 1 Grunt 9 | 1 8 Best Kill Streak 5 | 1 5 Combat Bots Only 2 | 1 2 Max Kills in Single Turn 3 | 1 3 Gunslinging . | . . Exploded 1 | . 1 Melee . | . . Uniques/NPCs Destroyed . | . . Combat | -11 -10 -------- Run | Yrd Mat Hostile Shots Fired 64 | 3 61 Missed 15 | 1 14 Damage Taken 705 | 52 653 Core 252 | 14 238 Absorbed by Shields . | . . Core Remaining (%) 94 | 94 . Volleys Fired 44 | 5 39 Largest 2 | 2 2 Hottest 80 | 80 80 Shots Fired 52 | 10 42 Gun 46 | 10 36 Cannon . | . . Launcher 6 | . 6 Special . | . . Kinetic . | . . Thermal 29 | . 29 Explosive 6 | . 6 Electromagnetic 17 | 10 7 Robot Hit Streak 11 | 3 11 Robot Miss Streak 3 | 1 3 Penetration Max . | . . Secondary Targets . | . . Shots Hit Robots 35 | 7 28 Core Hits 24 | 2 22 Critical Kills . | . . Critical Parts Destroyed . | . . Critical Strikes . | . . Melee Attacks . | . . Impact . | . . Slashing . | . . Piercing . | . . Sneak Attacks . | . . Combat Hostiles . | . . Follow-up Attacks . | . . Damage Inflicted 727 | 115 612 Guns 357 | 83 274 Cannons . | . . Explosions 357 | 32 325 Melee . | . . Ramming 13 | . 13 Kinetic . | . . Thermal 222 | 32 190 Explosive 325 | . 325 Electromagnetic 167 | 83 84 Impact . | . . Slashing . | . . Piercing . | . . Highest Corruption . | . . Average Corruption . | . . Corruption Purged . | . . Corruption Blocked . | . . Overload Shots . | . . Overflow Damage . | . . Projectiles . | . . Explosions . | . . Melee . | . . Knockbacks . | . . Impact . | . . Kinetic . | . . Secondary . | . . Self-Inflicted Damage 28 | 28 . Shots 1 | 1 . Rammed . | . . Targets Rammed 4 | . 4 Kicked 4 | . 4 Crushed . | . . Highest Temperature 112 | 66 112 Average Temperature 35 | 30 37 Received Heat Transfer 414 | 12 402 Siege Activations . | . . Robots Corrupted . | . . Combat Hostiles . | . . Parts Fried . | . . Impact Corruptions . | . . Robots Melted . | . . Combat Hostiles . | . . Parts Melted 1 | . 1 Heat Transferred 475 | 50 425 Parts Sabotaged . | . . Parts Stolen . | . . Parts Stripped . | . . Power Chain Reactions 1 | 1 . Alert | -11 -10 ------- Run | Yrd Mat Peak Influence 172 | 25 172 Initial 16 | . 16 Average 56 | 8 63 Maximum Alert Level . | . . Low Security (%) 100 | 100 100 Level 1 . | . . Level 2 . | . . Level 3 . | . . Level 4 . | . . Level 5 . | . . High Security . | . . Max Security . | . . Squads Dispatched . | . . Investigation . | . . Extermination . | . . Reinforcement . | . . Assault . | . . Garrison . | . . Intercept . | . . Searches Triggered . | . . Construction Impeded . | . . Haulers Reinforced . | . . Active Scanning Responses . | . . Cargo Convoy Interrupts . | . . Stealth | -11 -10 --------- Run | Yrd Mat Distress Signals 1 | . 1 Communications Jammed . | . . Distress Signals . | . . Times Spotted 12 | 1 11 Peak Tracking Total 4 | 1 4 Tactical Retreats . | . . Traps | -11 -10 ------- Run | Yrd Mat Traps Triggered 3 | . 3 Indirectly . | . . Trap Hack Attempts . | . . Triggered . | . . Disarmed . | . . Reprogrammed . | . . Reused . | . . Traps Extracted . | . . Installed . | . . Triggered . | . . Machines | -11 -10 ---------- Run | Yrd Mat Machines Disabled . | . . Max in Single Turn . | . . Machines Repaired . | . . Machines Dismantled . | . . Machines Sabotaged . | . . Overloaded Fab Kills . | . . Hacking | -11 -10 --------- Run | Yrd Mat Machines Accessed 3 | . 3 Terminals 2 | . 2 Fabricators . | . . Repair Stations . | . . Recycling Units 1 | . 1 Scanalyzers . | . . Garrison Access . | . . Total Hacks 7 | . 7 Successful 2 | . 2 Failed 5 | . 5 Catastrophic 1 | . 1 Database Lockouts . | . . Manual . | . . Terminals 4 | . 4 Fabricators . | . . Repair Stations . | . . Recycling Units 3 | . 3 Scanalyzers . | . . Garrison Access . | . . Terminal Hacks 2 | . 2 Prototype ID Bank 1 | . 1 Hauler Manifests 1 | . 1 Fabricator Hacks . | . . Repair Station Hacks . | . . Recycling Unit Hacks . | . . Scanalyzer . | . . Garrison Access Hacks . | . . Unauthorized Hacks . | . . Terminals . | . . Fabricators . | . . Repair Stations . | . . Recycling Units . | . . Scanalyzers . | . . Garrison Access . | . . Data Cores Recovered . | . . Used . | . . Hacking Detections 3 | . 3 Full Trace Events . | . . Feedback Events . | . . Feedback Blocked . | . . Robot Schematics Acquired . | . . Robots Built . | . . Authchips . | . . Time . | . . Total Robot Build Rating . | . . Part Schematics Acquired . | . . Parts Built . | . . Authchips . | . . Time . | . . Total Part Build Rating . | . . Parts Repaired . | . . Time . | . . Parts Recycled . | . . Recycled Matter . | . . Retrieved Matter . | . . Retrieved Components . | . . Parts Scanalyzed . | . . Part Schematics Acquired . | . . Parts Damaged . | . . Bothacking | -11 -10 ------------ Run | Yrd Mat Used RIF Installer . | . . Robots Hacked . | . . Non-combat . | . . Combat . | . . Robot Hacks Applied . | . . Relay Couplers Released . | . . Fabnet Peak Effective % . | . . Robots Rewired . | . . Allies Hacked . | . . Hacks Repelled . | . . Allies | -11 -10 -------- Run | Yrd Mat Total Allies . | . . Largest Group . | . . Highest-Rated Group . | . . Highest-Rated Ally . | . . Total Orders . | . . Ally Attacks . | . . Total Damage . | . . Kills . | . . Allies Corrupted . | . . Allies Melted . | . . Intel | -11 -10 ------- Run | Yrd Mat Robot Analysis Total . | . . Derelict Logs Recovered . | . . Drone Launches . | . . Drone Recoveries . | . . Exploration | -11 -10 ------------- Run | Yrd Mat Turns Passed 728 | 102 626 Spaces Moved 536 | 102 434 Core 21 | 20 1 Treads . | . . Legs 378 | . 378 Wheels 137 | 82 55 Hover . | . . Flight . | . . Fastest Speed 50 | 50 80 Average Speed 107 | 74 115 Slowest Speed 150 | 80 150 Overloaded Moves . | . . Propulsion Burnouts . | . . Robots Hopped . | . . Cave-ins Triggered . | . . Exploration Rate (%) 29 | 6 53 Regions Visited 1 Branch Regions . Pre-discovered Areas . | . . Known Exits Taken . | . . Unknown Exits Taken 1 | 1 . Scrap Searched . | . . Spaces Dug . | . . Terrain Destroyed 27 | . 27 Melee . | . . Projectile . | . . AOE 27 | . 27 Terrain Rammed . | . . Walls Destroyed . | . . Machines Disabled . | . . Actions | -11 -10 --------- Run | Yrd Mat Total 630 | 116 514 Wait 12 | 1 11 Move 535 | 101 434 Hop . | . . Pick Up 2 | 1 1 Fast Attach 23 | 6 17 Attach . | . . Detach 2 | 1 1 Swap . | . . Drop 8 | 1 7 Fire 44 | 5 39 Melee . | . . Ram . | . . Kick 4 | . 4 Crush . | . . Escape Stasis . | . . Rewire . | . . Trap . | . . Miscellaneous . | . . Route ------- -11/Scrapyard -10/Materials (discovered 3 exits: [*Mat x2] / [*Min]) History --------- Turn | Location | Event 2 | -11/Scrapyard | Met Revision 17 61 | -11/Scrapyard | Discovered new exit (range 8) 103 | -11/Scrapyard | Entered Materials 301 | -10/Materials | Discovered new exit (range 12) 514 | -10/Materials | Build established: Mutant 522 | -10/Materials | Core integrity fell below 50% 570 | -10/Materials | Discovered new exit (range 15) 642 | -10/Materials | Discovered new exit (range 7) 718 | -10/Materials | Core integrity fell below 20% 729 | -10/Materials | Destroyed by G-47 Trooper with Particle Gun Last Messages --------------- 6x Signal Interpreter (2 escorts) U-05 Engineer builds a Wall. Kicked T-07 Excavator out of the way. EXIT=FOUND U-05 Engineer lays Concrete. Kicked K-01 Serf. EXIT=FOUND Aluminum Leg destroyed. G-34 Mercenary destroyed. Acquired Aluminum Leg. Aluminum Leg destroyed. K-01 Serf collects debris. Heat Sink melted. G-34 Mercenary destroyed. K-01 Serf collects debris. Critical hit (Burn: +37). K-01 Serf collects debris. Ion Engine destroyed. K-01 Serf collects debris. Map ----- +----------------------------------------------------+ | | | | | | | | | | | | | | | | | | | | | | | | | ?????????????????????????????????????????????????? | | #####???#######??????????????????????????????????? | | ##### #??????????????????????????????????? | | ##################?????????????????? | | #????????????? | | % ######### ##+#####?????????????????? | | ##### #???????# #????????????????????????? | | ## ##???### ###???????# #????????????????????????? | | ?# #??????#+#???????### #????????????????????????? | | ?# #??????? ???????# #????????????????????????? | | ?# #??????? ??????# < #????????????????????????? | | ?# #???????? ?????# #???????????#????????????? | | ?# #???????? ????+ g[########### ###??????????? | | ?# #????????** "???# =%=@ a # "????? | | ?# #????????* ? ???# =% k + ???? | | ?# #????????? ? ??# *[%k % #??????????? | | ?# #????????? ? ?# [!##########+####??????????? | | ?# #?????????####?#?# !#????????????????????????? | | ?# #????????????????# #????????????????????????? | | ?# #????????????????# #????????????????????????? | | ##+###??????????????# #????????????????????????? | | #??????????????# #????????????????????????? | | #??????????????# #????????????????????????? | | """" #??????????????# #????????????????????????? | | """" #??????????????# ????????????????????????? | | """" #??????????????# ????????????????????????? | | #########??????# ????????????????????????? | | ####### # ???????# [[????????????????????????? | | # """ ""???# [[????????????????????????? | | T # """ ""????????????????????????????????? | | # """ """ +?????????????????????????????? | | = # #?????????????????????????????? | | #+#####/## #?????????? ??????????????????? | | =% !% / #?????????? ??????????????????? | | *% # #?????????? ??????????????????? | | %!* # #?????????????????? ??????????????????? | | #######+#####????????????????? #?????????????????? | | #?# #????????????????? #?????????????????? | +----------------------------------------------------+ Best States ------------- Heat Dissipation 49 Energy Generation 10 Energy Capacity 250 Matter Stores 350 Matter Capacity 400 Sight Range 16 Terrain Scan Density 10 Evasion (%) 55 Targeting Accuracy 12 Item Schematics ----------------- None Robot Schematics ------------------ None Fabricated ------------ Nothing Alien Tech Used ----------------- None Achievements -------------- Crack Shot Shopping List Challenges ------------ None Game ------ Seed LauncherAuthchipThruster Manual? 0 Play Time 00:14:18 Cumulative 1.1 hours Start 2024.03.31 @ 13:27:02 End 2024.03.31 @ 13:38:17 Sessions 1 Manual Loads 0 Difficulty Rogue Special Mode None Game No. 3 Rogue 3 Adventurer 0 Explorer 0 Win Type - Total 0 Types 0/0/0/0/0/0/0/0/0 Lore% 1 Gallery% 2 Achievement% 2 Wizard Run 0 Options --------- Layout 1 ASCII 0 Keyboard 1 Movement Numpad Keybinds 0 Fullscreen 1 Font 32/SmallcapsGlow Map View 130x35 Zoom Use 0% Tactical HUD 0 Map Filters NONE Filters NONE Steam 1 RUN: fc8a6b46-985e-4299-b9af-3b1b1fc363bb